fUST/lending_fUST_20240117
["ID","MTS","AMOUNT","RATE_DAILY","PERIOD"]
[311843898,1705456246352,-205.77282202,0.0003178,2]
[311843900,1705456246362,-509.1268712,0.0003178,2]
[311843901,1705456246371,-500.0,0.0003178,2]
[311843902,1705456246381,-500.0,0.0003178,2]
[311843903,1705456246391,-500.0,0.0003178,2]
[311843904,1705456246400,-500.0,0.0003178,2]
[311843905,1705456246411,-200.0,0.0003178,2]
[311843906,1705456246419,-619.73,0.0003178,2]
[311843907,1705456246428,-500.0,0.0003178,2]
[311843908,1705456246438,-500.0,0.0003178,2]
[311843909,1705456246448,-500.0,0.0003178,2]
[311843910,1705456246461,-20273.89,0.0003178,2]
[311843911,1705456246471,-500.23542771,0.0003178,2]
[311843912,1705456246480,-500.0,0.0003178,2]
[311843913,1705456246489,-10629.77,0.0003178,2]
[311843914,1705456246498,-500.0,0.0003178,2]
[311843915,1705456246507,-500.0,0.0003178,2]
[311843916,1705456246515,-500.0,0.0003178,2]
[311843917,1705456246524,-500.0,0.0003178,2]
[311843918,1705456246533,-500.0,0.0003178,2]
[311843919,1705456246542,-500.95145223,0.0003178,2]
[311843920,1705456246554,-500.0,0.0003178,2]
[311843921,1705456246563,-500.0,0.0003178,2]
[311843922,1705456246574,-500.0,0.0003178,2]
[311843923,1705456246583,-500.0,0.0003178,2]
[311843924,1705456246592,-155.43647258,0.0003178,2]
[311843925,1705456246601,-2797.87,0.0003178,2]
[311843926,1705456246612,-500.0,0.0003178,2]
[311843927,1705456246621,-2127.956512,0.0003178,2]
[311843928,1705456246631,-2127.956512,0.0003178,2]
[311843929,1705456246641,-2127.956512,0.0003178,2]
[311843930,1705456246651,-2127.956512,0.0003178,2]
[311843931,1705456246661,-2127.956512,0.0003178,2]
[311843932,1705456246670,-500.0,0.0003178,2]
[311843933,1705456246679,-2127.956512,0.0003178,2]
[311843934,1705456246688,-2127.956512,0.0003178,2]
[311843935,1705456246697,-37932.55,0.0003178,2]
[311843936,1705456246706,-423.54566132,0.0003178,2]
[311843937,1705456246715,-3183.4,0.0003178,2]
[311843938,1705456246725,-500.0,0.0003178,2]
[311843939,1705456246734,-2127.956512,0.0003178,2]
[311843940,1705456246745,-2127.956512,0.0003178,2]
[311843941,1705456246755,-2127.956512,0.0003178,2]
[311843942,1705456246765,-2127.956512,0.0003178,2]
[311843943,1705456246774,-500.0,0.0003178,2]
[311843944,1705456246784,-519.98545515,0.0003178,2]
[311843945,1705456246793,-2127.956512,0.0003178,2]
[311843946,1705456246801,-2127.956512,0.0003178,2]
[311843947,1705456246810,-2127.956514,0.0003178,2]
[311843948,1705456246819,-249.87168367,0.0003178,2]
[311843949,1705456246828,-443.10149622,0.0003178,2]
[311843950,1705456246837,-973.15,0.0003178,2]
[311843951,1705456246846,-500.0,0.0003178,2]
[311843952,1705456246855,-503.57366015,0.0003178,2]
[311843953,1705456246865,-500.0,0.0003178,2]
[311843954,1705456246875,-364.63598093,0.0003178,2]
[311843955,1705456246884,-1862.81,0.0003178,2]
[311843956,1705456246894,-505.67575062,0.0003178,2]
[311843957,1705456246904,-500.0,0.0003178,2]
[311843958,1705456246913,-500.0,0.0003178,2]
[311843959,1705456246924,-500.35485491,0.0003178,2]
[311843960,1705456246934,-2188.37,0.0003178,2]
[311843961,1705456246944,-865.86,0.0003178,2]
[311843962,1705456246956,-500.0,0.0003178,2]
[311843963,1705456246966,-500.0,0.0003178,2]
[311843964,1705456246975,-500.0,0.0003178,2]
[311843965,1705456246984,-5365.98,0.0003178,2]
[311843966,1705456246994,-500.0,0.0003178,2]
[311843967,1705456247003,-500.0,0.0003178,2]
[311843968,1705456247012,-500.0,0.0003178,2]
[311843969,1705456247022,-1074.67,0.0003178,2]
[311843970,1705456247031,-578.8797998,0.0003178,2]
[311843971,1705456247040,-500.0,0.0003178,2]
[311843972,1705456247049,-501.47,0.0003178,2]
[311843973,1705456247058,-500.0,0.0003178,2]
[311843974,1705456247068,-500.0,0.0003178,2]
[311843975,1705456247077,-344.73350405,0.0003178,2]
[311843976,1705456247086,-500.0,0.0003178,2]
[311843977,1705456247095,-500.0,0.0003178,2]
[311843978,1705456247105,-500.0,0.0003178,2]
[311843979,1705456247115,-500.0,0.0003178,2]
[311843980,1705456247124,-500.0,0.0003178,2]
[311843981,1705456247133,-500.0,0.0003178,2]
[311843982,1705456247142,-500.0,0.0003178,2]
[311843983,1705456247151,-563.89,0.0003178,2]
[311843984,1705456247162,-500.0,0.0003178,2]
[311843985,1705456247171,-500.0,0.0003178,2]
[311843986,1705456247181,-500.0,0.0003178,2]
[311843987,1705456247191,-500.0,0.0003178,2]
[311843988,1705456247201,-500.5994203,0.0003178,2]
[311843989,1705456247210,-500.0,0.0003178,2]
[311843990,1705456247219,-500.0,0.0003178,2]
[311843991,1705456247229,-500.0,0.0003178,2]
[311843992,1705456247240,-7876.59,0.0003178,2]
[311843993,1705456247249,-500.0,0.0003178,2]
[311843994,1705456247258,-500.0,0.0003178,2]
[311843995,1705456247268,-500.0,0.0003178,2]
[311843996,1705456247277,-500.0,0.0003178,2]
[311843997,1705456247286,-500.0,0.0003178,2]
[311843998,1705456247296,-1253.43,0.0003178,2]
[311843999,1705456247306,-500.0,0.0003178,2]
[311844000,1705456247315,-500.0,0.0003178,2]
[311844001,1705456247325,-500.0,0.0003178,2]
[311844002,1705456247334,-500.0,0.0003178,2]
[311844003,1705456247397,-1454.56,0.0003178,2]
[311844004,1705456247406,-2667.09,0.0003178,2]
[311844005,1705456247416,-500.0,0.0003178,2]
[311844006,1705456247425,-500.0,0.0003178,2]
[311844007,1705456247435,-500.0,0.0003178,2]
[311844008,1705456247445,-500.0,0.0003178,2]
[311844009,1705456247455,-1590.94,0.0003178,2]
[311844010,1705456247464,-500.0,0.0003178,2]
[311844011,1705456247474,-3188.99,0.0003178,2]
[311844012,1705456247484,-675.27,0.0003178,2]
[311844013,1705456247494,-2342.39,0.0003178,2]
[311844014,1705456247504,-500.0,0.0003178,2]
[311844015,1705456247513,-500.0,0.0003178,2]
[311844016,1705456247522,-500.0,0.0003178,2]
[311844017,1705456247532,-500.0,0.0003178,2]
[311844018,1705456247543,-500.0,0.0003178,2]
[311844019,1705456247553,-562.18,0.0003178,2]
[311844020,1705456247563,-500.0,0.0003178,2]
[311844021,1705456247574,-500.2903522,0.0003178,2]
[311844022,1705456247584,-500.0,0.0003178,2]
[311844023,1705456247594,-7455.97,0.0003178,2]
[311844024,1705456247604,-868.4,0.0003178,2]
[311844025,1705456247613,-1093.74,0.0003178,2]
[311844026,1705456247622,-500.0,0.0003178,2]
[311844027,1705456247631,-330.69496615,0.0003178,2]
[311844028,1705456247641,-500.0,0.0003178,2]
[311844029,1705456247650,-601.44415914,0.0003178,2]
[311844030,1705456247661,-621.60609587,0.0003178,2]
[311844031,1705456247670,-155.86728821,0.00031848,7]
[311844032,1705456247680,-1099.69,0.00031899,2]
[311844033,1705456247690,-80009.03953129,0.000319,2]
[311844034,1705456247700,-151.0,0.000319,2]
[311844035,1705456247709,-2000.0,0.000319,2]
[311844036,1705456247718,-2000.0,0.000319,2]
[311844037,1705456247728,-151.0,0.00031909,2]
[311844038,1705456247737,-2000.0,0.0003191,2]
[311844039,1705456247746,-2000.0,0.0003191,2]
[311844040,1705456247756,-1099.69,0.00031914,2]
[311844041,1705456247767,-1099.69,0.00031914,2]
[311844042,1705456247779,-156.00691354,0.00031915,2]
[311844043,1705456247788,-878.34013724,0.00031915,4]
[311844044,1705456247798,-155.29426556,0.00031915,4]
[311844045,1705456247807,-181.46170404,0.00031915,2]
[311844046,1705456247817,-226.09684975,0.00031915,4]
[311844047,1705456247826,-158.74448454,0.00031915,4]
[311844048,1705456247835,-947.43868379,0.00031915,4]
[311844049,1705456247844,-404.672001,0.00031915,4]
[311844050,1705456247853,-158.75487493,0.00031915,4]
[311844051,1705456247863,-309.84507746,0.00031915,4]
[311844052,1705456247873,-155.83792479,0.00031915,4]
[311844053,1705456247883,-1054.48707625,0.00031915,7]
[311844054,1705456247893,-2101.23068297,0.00031915,4]
[311844055,1705456247903,-351.79302352,0.00031915,4]
[311844056,1705456247914,-218.952892,0.00031915,2]
[311844057,1705456247924,-1099.69,0.00031916,2]
[311844058,1705456247933,-1099.69,0.00031916,2]
[311844059,1705456247942,-1099.69,0.00031916,2]
[311844060,1705456247953,-1099.69,0.00031916,2]
[311844061,1705456247963,-1099.69,0.00031916,2]
[311844062,1705456247973,-1099.69,0.00031916,2]
[311844063,1705456247983,-1099.69,0.00031916,2]
[311844064,1705456247992,-1823.10005026,0.00031917,2]
[311844065,1705456248002,-500.0,0.00031917,2]
[311844066,1705456248011,-500.0,0.00031917,2]
[311844067,1705456248021,-500.0,0.00031917,2]
[311844068,1705456248030,-500.0,0.00031917,2]
[311844069,1705456248040,-500.0,0.00031917,2]
[311844070,1705456248049,-500.0,0.00031917,2]
[311844071,1705456248059,-560.36,0.00031917,2]
[311844072,1705456248068,-500.0,0.00031917,2]
[311844073,1705456248076,-500.0,0.00031917,2]
[311844074,1705456248085,-927.77,0.00031917,2]
[311844075,1705456248094,-500.0,0.00031917,2]
[311844076,1705456248103,-699.11,0.00031917,2]
[311844077,1705456248112,-584.13603656,0.00031917,2]
[311844078,1705456248120,-500.0,0.00031917,2]
[311844079,1705456248129,-500.0,0.00031917,2]
[311844080,1705456248138,-363.79336489,0.00031917,2]
[311844081,1705456248147,-510.54697838,0.00031917,2]
[311844082,1705456248156,-500.0,0.00031917,2]
[311844083,1705456248165,-500.0,0.00031917,2]
[311844084,1705456248177,-592.77214341,0.00031917,2]
[311844085,1705456248187,-500.0,0.00031917,2]
[311844086,1705456248196,-500.0,0.00031917,2]
[311844087,1705456248205,-500.0,0.00031917,2]
[311844088,1705456248214,-506.53281427,0.00031917,2]
[311844089,1705456248223,-500.0,0.00031917,2]
[311844090,1705456248232,-500.0,0.00031917,2]
[311844091,1705456248241,-500.0,0.00031917,2]
[311844092,1705456248250,-225.68641335,0.00031917,2]
[311844093,1705456248258,-500.0,0.00031917,2]
[311844094,1705456248267,-500.0,0.00031917,2]
[311844095,1705456248277,-500.0,0.00031917,2]
[311844096,1705456248286,-500.0,0.00031917,2]
[311844097,1705456248294,-500.0,0.00031917,2]
[311844098,1705456248303,-500.91985474,0.00031917,2]
[311844099,1705456248313,-502.34833934,0.00031917,2]
[311844100,1705456248322,-500.0,0.00031917,2]
[311844101,1705456248331,-501.09883697,0.00031917,2]
[311844102,1705456248387,-500.0,0.00031917,2]
[311844103,1705456248400,-467.50247319,0.00031917,2]
[311844104,1705456248410,-500.0,0.00031917,2]
[311844105,1705456248418,-345.26751403,0.00031917,2]
[311844106,1705456248427,-500.0,0.00031917,2]
[311844107,1705456248436,-500.0,0.00031917,2]
[311844108,1705456248445,-478.64527726,0.00031917,2]
[311844109,1705456248453,-503.63257264,0.00031917,2]
[311844110,1705456248462,-500.0,0.00031917,2]
[311844111,1705456248471,-500.0,0.00031917,2]
[311844112,1705456248480,-553.3358439,0.00031917,2]
[311844113,1705456248489,-500.0,0.00031917,2]
[311844114,1705456248498,-511.97822504,0.00031917,2]
[311844115,1705456248506,-491.91259985,0.00031917,2]
[311844116,1705456248516,-500.0,0.00031917,2]
[311844117,1705456248525,-500.0,0.00031917,2]
[311844118,1705456248535,-500.0,0.00031917,2]
[311844119,1705456248544,-500.0,0.00031917,2]
[311844120,1705456248553,-500.0,0.00031917,2]
[311844121,1705456248562,-628.95,0.00031917,2]
[311844122,1705456248571,-498.01649324,0.00031917,2]
[311844123,1705456248579,-500.0,0.00031917,2]
[311844124,1705456248588,-500.0,0.00031917,2]
[311844125,1705456248597,-500.0,0.00031917,2]
[311844126,1705456248606,-500.0,0.00031917,2]
[311844127,1705456248615,-501.58761372,0.00031917,2]
[311844128,1705456248624,-1000.0,0.00031917,2]
[311844129,1705456248633,-502.83450418,0.00031917,2]
[311844130,1705456248641,-500.0,0.00031917,2]
[311844131,1705456248650,-500.0,0.00031917,2]
[311844132,1705456248660,-500.0,0.00031917,2]
[311844133,1705456248668,-500.0,0.00031917,2]
[311844134,1705456248677,-500.0,0.00031917,2]
[311844135,1705456248685,-407.14178072,0.00031917,2]
[311844136,1705456248694,-500.0,0.00031917,2]
[311844137,1705456248702,-500.0,0.00031917,2]
[311844138,1705456248711,-377.05514648,0.00031917,2]
[311844139,1705456248720,-500.0,0.00031917,2]
[311844140,1705456248729,-513.58088429,0.00031917,2]
[311844141,1705456248737,-500.0,0.00031917,2]
[311844142,1705456248746,-500.0,0.00031917,2]
[311844143,1705456248755,-500.0,0.00031917,2]
[311844144,1705456248763,-359.92314811,0.00031917,2]
[311844145,1705456248773,-503.84477074,0.00031917,2]
[311844146,1705456248781,-500.0,0.00031917,2]
[311844147,1705456248790,-500.0,0.00031917,2]
[311844148,1705456248799,-312.8234048,0.00031917,2]
[311844149,1705456248937,-187.1765952,0.00031917,2]
[311844150,1705456248946,-500.0,0.00031917,2]
[311844151,1705456248954,-500.0,0.00031917,2]
[311844152,1705456248963,-1460.93,0.00031917,2]
[311844153,1705456248971,-500.0,0.00031917,2]
[311844154,1705456248980,-500.0,0.00031917,2]
[311844155,1705456248988,-500.0,0.00031917,4]
[311844156,1705456248997,-500.0,0.00031917,2]
[311844157,1705456249006,-500.0,0.00031917,2]
[311844158,1705456249014,-500.0,0.00031917,2]
[311844159,1705456249023,-500.0,0.00031917,2]
[311844160,1705456249032,-500.0,0.00031917,2]
[311844161,1705456249041,-150.0,0.00031917,2]
[311844162,1705456249050,-500.0,0.00031917,2]
[311844163,1705456249058,-293.00812236,0.00031917,2]
[311844164,1705456249068,-518.05608852,0.00031917,2]
[311844165,1705456249077,-500.0,0.00031917,2]
[311844166,1705456249138,-500.0,0.00031917,2]
[311844167,1705456249148,-500.0,0.00031917,2]
[311844168,1705456249159,-1000.0,0.00031917,2]
[311844169,1705456249168,-500.0,0.00031917,2]
[311844170,1705456249178,-328.78610997,0.00031917,2]
[311844171,1705456249188,-807.29,0.00031917,2]
[311844172,1705456249200,-500.0,0.00031917,2]
[311844173,1705456249210,-501.64411783,0.00031917,2]
[311844174,1705456249219,-500.0,0.00031917,2]
[311844175,1705456249229,-500.0,0.00031917,2]
[311844176,1705456249239,-500.0,0.00031917,2]
[311844177,1705456249248,-502.98829358,0.00031917,2]
[311844178,1705456249258,-500.0,0.00031917,2]
[311844179,1705456249268,-500.0,0.00031917,2]
[311844180,1705456249278,-537.79242082,0.00031917,2]
[311844181,1705456249288,-1679.72,0.00031917,2]
[311844182,1705456249297,-500.0,0.00031917,2]
[311844183,1705456249308,-471.36391767,0.00031917,2]
[311844184,1705456249318,-750.7,0.00031917,2]
[311844185,1705456249327,-608.43,0.00031917,2]
[311844186,1705456249336,-500.0,0.00031917,2]
[311844187,1705456249346,-500.0,0.00031917,2]
[311844188,1705456249355,-500.0,0.00031917,2]
[311844189,1705456249365,-500.0,0.00031917,2]
[311844190,1705456249374,-500.0,0.00031917,2]
[311844191,1705456249384,-566.52,0.00031917,2]
[311844192,1705456249393,-500.0,0.00031917,2]
[311844193,1705456249402,-500.0,0.00031917,2]
[311844194,1705456249413,-500.0,0.00031917,2]
[311844195,1705456249424,-467.34306252,0.00031917,2]
[311844196,1705456249434,-500.0,0.00031917,2]
[311844197,1705456249445,-505.27642083,0.00031917,2]
[311844198,1705456249454,-500.0,0.00031917,2]
[311844199,1705456249466,-911.26,0.00031917,2]
[311844200,1705456249475,-500.0,0.00031917,2]
[311844201,1705456249485,-500.0,0.00031917,2]
[311844202,1705456249493,-573.88282626,0.00031917,2]
[311844203,1705456249503,-890.54,0.00031917,2]
[311844204,1705456249513,-500.0,0.00031917,2]
[311844205,1705456249524,-500.0,0.00031917,2]
[311844206,1705456249534,-500.0,0.00031917,2]
[311844207,1705456249543,-1089.13,0.00031917,2]
[311844208,1705456249553,-514.06183882,0.00031917,2]
[311844209,1705456249571,-556.19,0.00031917,2]
[311844210,1705456249588,-502.52359006,0.00031917,2]
[311844211,1705456249607,-500.6730662,0.00031917,2]
[311844212,1705456249624,-515.47,0.00031917,2]
[311844213,1705456249639,-500.0,0.00031917,2]
[311844214,1705456249656,-500.0,0.00031917,2]
[311844215,1705456249675,-500.0,0.00031917,2]
[311844216,1705456249690,-500.0,0.00031917,2]
[311844217,1705456249708,-500.0,0.00031917,2]
[311844218,1705456249724,-500.0,0.00031917,2]
[311844219,1705456249741,-500.0,0.00031917,2]
[311844220,1705456249761,-500.0,0.00031917,2]
[311844221,1705456249776,-500.0,0.00031917,2]
[311844222,1705456249788,-500.0,0.00031917,2]
[311844223,1705456249806,-588.71870279,0.00031917,2]
[311844224,1705456249821,-500.0,0.00031917,2]
[311844225,1705456249834,-500.0,0.00031917,2]
[311844226,1705456249849,-500.0,0.00031917,2]
[311844227,1705456249862,-500.0,0.00031917,2]
[311844228,1705456249876,-682.22,0.00031917,2]
[311844229,1705456249889,-500.0,0.00031917,2]
[311844230,1705456249903,-508.86405407,0.00031917,2]
[311844231,1705456249916,-500.0,0.00031917,2]
[311844232,1705456249930,-565.60530441,0.00031917,2]
[311844233,1705456249944,-500.0,0.00031917,2]
[311844234,1705456249959,-500.0,0.00031917,2]
[311844235,1705456249973,-500.0,0.00031917,2]
[311844236,1705456249988,-263.16273004,0.00031917,2]
[311844237,1705456250003,-500.0,0.00031917,2]
[311844238,1705456250017,-500.0,0.00031917,2]
[311844239,1705456250031,-500.0,0.00031917,2]
[311844240,1705456250046,-500.0,0.00031917,2]
[311844241,1705456250061,-3565.96,0.00031917,2]
[311844242,1705456250072,-519.03248865,0.00031917,2]
[311844243,1705456250081,-388.96489924,0.00031917,2]
[311844244,1705456250091,-500.0,0.00031917,2]
[311844245,1705456250101,-500.0,0.00031917,2]
[311844246,1705456250110,-500.0,0.00031917,2]
[311844247,1705456250120,-500.0,0.00031917,2]
[311844248,1705456250129,-500.0,0.00031917,2]
[311844249,1705456250139,-500.0,0.00031917,2]
[311844250,1705456250149,-500.0,0.00031917,2]
[311844251,1705456250271,-503.79040743,0.00031917,2]
[311844252,1705456250293,-561.06752214,0.00031917,2]
[311844253,1705456250303,-525.63972031,0.00031917,2]
[311844254,1705456250313,-500.0,0.00031917,2]
[311844255,1705456250322,-214.55184681,0.00031917,2]
[311844256,1705456250332,-500.0,0.00031917,2]
[311844257,1705456250341,-500.0,0.00031917,2]
[311844258,1705456250350,-500.0,0.00031917,2]
[311844259,1705456250359,-500.0,0.00031917,2]
[311844260,1705456250368,-500.0,0.00031917,2]
[311844261,1705456250377,-500.0,0.00031917,2]
[311844262,1705456250386,-500.0,0.00031917,2]
[311844263,1705456250396,-500.0,0.00031917,2]
[311844264,1705456250405,-500.0,0.00031917,2]
[311844265,1705456250416,-1270.99,0.00031917,2]
[311844266,1705456250427,-500.0,0.00031917,2]
[311844267,1705456250437,-1684.94,0.00031917,2]
[311844268,1705456250446,-900.63,0.00031917,2]
[311844269,1705456250455,-500.90966369,0.00031917,2]
[311844270,1705456250464,-500.0,0.00031917,2]
[311844271,1705456250473,-500.0,0.00031917,2]
[311844272,1705456250482,-500.0,0.00031917,2]
[311844273,1705456250492,-500.0,0.00031917,2]
[311844274,1705456250501,-500.0,0.00031917,2]
[311844275,1705456250511,-500.0,0.00031917,2]
[311844276,1705456250521,-500.0,0.00031917,2]
[311844277,1705456250530,-500.0,0.00031917,2]
[311844278,1705456250540,-500.0,0.00031917,2]
[311844279,1705456250549,-500.0,0.00031917,2]
[311844280,1705456250559,-648.08401203,0.00031917,2]
[311844281,1705456250569,-500.0,0.00031917,2]
[311844282,1705456250579,-531.88659275,0.00031917,2]
[311844283,1705456250588,-500.0,0.00031917,2]
[311844284,1705456250598,-551.27,0.00031917,2]
[311844285,1705456250607,-500.0,0.00031917,2]
[311844286,1705456250616,-1892.37,0.00031917,2]
[311844287,1705456250625,-500.0,0.00031917,2]
[311844288,1705456250634,-1778.88,0.00031917,2]
[311844289,1705456250643,-1951.1,0.00031917,2]
[311844290,1705456250652,-500.0,0.00031917,5]
[311844291,1705456250663,-500.0,0.00031917,2]
[311844292,1705456250672,-500.0,0.00031917,2]
[311844293,1705456250681,-532.91,0.00031917,2]
[311844294,1705456250690,-500.0,0.00031917,2]
[311844295,1705456250701,-500.0,0.00031917,2]
[311844296,1705456250710,-500.0,0.00031917,2]
[311844297,1705456250719,-201.56451602,0.00031917,2]
[311844298,1705456250729,-411.25269876,0.00031917,2]
[311844299,1705456250738,-500.0,0.00031917,2]
[311844300,1705456250747,-502.99980085,0.00031917,2]
[311844301,1705456250756,-500.0,0.00031917,2]
[311844302,1705456250766,-500.0,0.00031917,2]
[311844303,1705456250775,-500.0,0.00031917,2]
[311844304,1705456250785,-500.0,0.00031917,2]
[311844305,1705456250794,-3572.44,0.00031917,2]
[311844306,1705456250804,-500.0,0.00031917,2]
[311844307,1705456250813,-8634.01,0.00031917,2]
[311844308,1705456250822,-846.4,0.00031917,2]
[311844309,1705456250831,-500.0,0.00031917,2]
[311844310,1705456250840,-500.0,0.00031917,2]
[311844311,1705456250850,-500.0,0.00031917,2]
[311844312,1705456250859,-500.0,0.00031917,2]
[311844313,1705456250868,-200.0,0.00031917,2]
[311844314,1705456250877,-619.73,0.00031917,2]
[311844315,1705456250886,-500.0,0.00031917,2]
[311844316,1705456250896,-501.78839082,0.00031917,2]
[311844317,1705456250905,-198.56564252,0.00031917,2]
[311844318,1705456250916,-20273.89,0.00031917,2]
[311844319,1705456250925,-500.0,0.00031917,2]
[311844320,1705456250934,-10629.77,0.00031917,2]
[311844321,1705456250943,-222.24610265,0.00031917,2]
[311844322,1705456250952,-500.0,0.00031917,2]
[311844323,1705456250961,-500.0,0.00031917,2]
[311844324,1705456250970,-500.0,0.00031917,2]
[311844325,1705456250980,-500.0,0.00031917,2]
[311844326,1705456250990,-500.0,0.00031917,2]
[311844327,1705456250999,-500.0,0.00031917,2]
[311844328,1705456251008,-500.0,0.00031917,2]
[311844329,1705456251017,-500.0,0.00031917,2]
[311844330,1705456251026,-2797.87,0.00031917,2]
[311844331,1705456251036,-500.80858493,0.00031917,2]
[311844332,1705456251045,-569.61165838,0.00031917,2]
[311844333,1705456251054,-37932.55,0.00031917,2]
[311844334,1705456251064,-3183.4,0.00031917,2]
[311844335,1705456251074,-500.0,0.00031917,2]
[311844336,1705456251083,-500.83670072,0.00031917,2]
[311844337,1705456251092,-973.15,0.00031917,2]
[311844338,1705456251102,-500.0,0.00031917,2]
[311844339,1705456251111,-500.0,0.00031917,2]
[311844340,1705456251120,-1862.81,0.00031917,2]
[311844341,1705456251130,-500.0,0.00031917,2]
[311844342,1705456251139,-500.0,0.00031917,2]
[311844343,1705456251149,-2188.37,0.00031917,2]
[311844344,1705456251159,-500.0,0.00031917,2]
[311844345,1705456251169,-865.86,0.00031917,2]
[311844346,1705456251179,-500.0,0.00031917,2]
[311844347,1705456251190,-500.0,0.00031917,2]
[311844348,1705456251200,-5365.98,0.00031917,2]
[311844349,1705456251210,-500.0,0.00031917,2]
[311844350,1705456251219,-500.0,0.00031917,2]
[311844351,1705456251228,-500.0,0.00031917,2]
[311844352,1705456251238,-1074.67,0.00031917,2]
[311844353,1705456251247,-500.0,0.00031917,2]
[311844354,1705456251256,-501.47,0.00031917,2]
[311844355,1705456251268,-500.0,0.00031917,2]
[311844356,1705456251277,-500.0,0.00031917,2]
[311844357,1705456251286,-613.50937689,0.00031917,2]
[311844358,1705456251296,-500.0,0.00031917,2]
[311844359,1705456251306,-500.0,0.00031917,2]
[311844360,1705456251316,-500.0,0.00031917,2]
[311844361,1705456251325,-500.0,0.00031917,2]
[311844362,1705456251334,-500.0,0.00031917,2]
[311844363,1705456251344,-500.0,0.00031917,2]
[311844364,1705456251354,-563.89,0.00031917,2]
[311844365,1705456251364,-500.0,0.00031917,2]
[311844366,1705456251374,-500.0,0.00031917,2]
[311844367,1705456251383,-254.97616014,0.00031917,2]
[311844368,1705456251392,-500.0,0.00031917,2]
[311844369,1705456251401,-179.25954201,0.00031917,2]
[311844370,1705456251410,-500.0,0.00031917,2]
[311844371,1705456251420,-521.01135364,0.00031917,2]
[311844372,1705456251429,-7876.59,0.00031917,2]
[311844373,1705456251439,-500.0,0.00031917,2]
[311844374,1705456251448,-500.0,0.00031917,2]
[311844375,1705456251458,-647.47145029,0.00031917,2]
[311844376,1705456251467,-500.0,0.00031917,2]
[311844377,1705456251476,-500.0,0.00031917,2]
[311844378,1705456251485,-1253.43,0.00031917,2]
[311844379,1705456251494,-500.0,0.00031917,2]
[311844380,1705456251504,-500.0,0.00031917,2]
[311844381,1705456251513,-500.0,0.00031917,2]
[311844382,1705456251523,-1454.56,0.00031917,2]
[311844383,1705456251532,-2667.09,0.00031917,2]
[311844384,1705456251542,-500.0,0.00031917,2]
[311844385,1705456251553,-500.0,0.00031917,2]
[311844386,1705456251563,-542.29561648,0.00031917,2]
[311844387,1705456251573,-500.0,0.00031917,2]
[311844388,1705456251584,-500.0,0.00031917,2]
[311844389,1705456251594,-1590.94,0.00031917,2]
[311844390,1705456251604,-500.0,0.00031917,2]
[311844391,1705456251613,-3188.99,0.00031917,2]
[311844392,1705456251622,-675.27,0.00031917,2]
[311844393,1705456251632,-2342.39,0.00031917,2]
[311844394,1705456251642,-632.46,0.00031917,2]
[311844395,1705456251651,-501.3034891,0.00031917,2]
[311844396,1705456251662,-500.0,0.00031917,2]
[311844397,1705456251670,-500.0,0.00031917,2]
[311844398,1705456251679,-500.0,0.00031917,2]